bitfinex/quotes_ETHUSD_20220101
["timestamp","ask_amount","ask_price","bid_price","bid_amount"]
[1641041366164,0.00094081,3710.2,3710.1,2.75031008]
[1641041373048,0.00094081,3710.2,3710.1,4.08207184]
[1641041378909,0.00094081,3710.2,3710.1,2.75031008]
[1641041394861,0.00094081,3710.2,3710.1,5.4723541]
[1641041395061,0.00094081,3710.2,3710.1,5.54891614]
[1641041395263,0.00094081,3710.2,3710.1,3.05031008]
[1641041396359,0.00094081,3710.2,3710.1,3.66001008]
[1641041397160,0.00094081,3710.2,3710.1,6.15743148]
[1641041399609,0.00094081,3710.2,3710.1,3.36001008]
[1641041399808,0.00094081,3710.2,3710.1,2.75031008]
[1641041400009,0.00094081,3710.2,3710.1,5.15734506]
[1641041400210,0.00094081,3710.2,3710.1,2.75031008]
[1641041400411,0.00094081,3710.2,3710.1,5.11506224]
[1641041400615,0.00094081,3710.2,3710.1,5.13221593]
[1641041400816,0.00094081,3710.2,3710.1,2.75031008]
[1641041408017,0.00094081,3710.2,3710.1,3.05031008]
[1641041409858,0.00094081,3710.2,3710.1,5.77556063]
[1641041412667,0.00094081,3710.2,3710.1,2.75031008]
[1641041416527,0.00094081,3710.2,3710.1,5.50263314]
[1641041416953,0.00094081,3710.2,3710.1,6.85019314]
[1641041418060,0.00094081,3710.2,3710.1,6.77219314]
[1641041421410,4.081e-05,3710.2,3710.1,8.07219314]
[1641041422406,0.81015291,3710.9,3710.5,0.67363]
[1641041422613,0.81015291,3710.9,3710.7,2.01712323]
[1641041422911,0.00454739,3710.8,3710.7,2.61712323]
[1641041423109,0.00454739,3710.8,3710.7,6.00498008]
[1641041423309,0.00454739,3710.8,3710.7,3.61712323]
[1641041423509,0.00454739,3710.8,3710.7,6.00400166]
[1641041423710,0.00454739,3710.8,3710.7,6.67764166]
[1641041423911,0.00454739,3710.8,3710.7,9.39539365]
[1641041424963,0.00454739,3710.8,3710.7,6.67764166]
[1641041425166,1.18752243,3711.1,3710.9,0.81015291]
[1641041425365,1.18752243,3711.1,3711.0,7.24401174]
[1641041425569,1.18752243,3711.1,3711.0,0.97359]
[1641041426570,1.18752243,3711.1,3711.0,3.37675404]
[1641041426769,1.18752243,3711.1,3711.0,0.97359]
[1641041426970,1.18752243,3711.1,3711.0,3.3471348]
[1641041427374,1.18752243,3711.1,3711.0,0.97359]
[1641041428024,1.18752243,3711.1,3711.0,4.97842943]
[1641041429021,1.18752243,3711.1,3711.0,2.62390008]
[1641041429222,1.18752243,3711.1,3711.0,4.98737217]
[1641041430125,1.18752243,3711.1,3711.0,4.97920183]
[1641041431759,1.18752243,3711.1,3711.0,7.66486892]
[1641041431959,1.18846768,3711.1,3711.0,7.66486892]
[1641041433461,1.18846768,3711.1,3711.0,5.30956717]
[1641041433863,1.18846768,3711.1,3711.0,7.72715983]
[1641041434263,1.18846768,3711.1,3711.0,5.30956717]
[1641041434463,1.18846768,3711.1,3711.0,7.6862306]
[1641041435268,1.18846768,3711.1,3711.0,8.7862306]
[1641041436109,1.18846768,3711.1,3711.0,6.40956717]
[1641041436310,1.18846768,3711.1,3711.0,7.72884702]
[1641041436513,1.18846768,3711.1,3711.0,6.40956717]
[1641041436709,0.06603221,3711.9,3711.7,1.07241258]
[1641041436913,0.06603221,3711.9,3711.8,4.32345]
[1641041437209,1.83764384,3712.5,3711.8,2.32376008]
[1641041437409,1.83764384,3712.5,3711.8,3.32376008]
[1641041437609,0.00909478,3712.4,3711.9,1.0]
[1641041437811,0.00909478,3712.4,3711.8,2.65031008]
[1641041438017,1.13510267,3712.7,3711.8,1.65031008]
[1641041438018,0.00852635,3712.3,3711.8,1.65031008]
[1641041438410,0.00795793,3712.2,3711.8,1.65031008]
[1641041438811,0.00738951,3712.1,3711.8,1.65031008]
[1641041439253,2.28071919,3712.6,3711.8,1.65031008]
[1641041439254,0.00682108,3712.0,3711.8,1.65031008]
[1641041439657,0.00625266,3711.9,3711.8,2.32382008]
[1641041441061,0.00625266,3711.9,3711.8,2.62382008]
[1641041441260,0.00625266,3711.9,3711.8,3.62961788]
[1641041441460,0.00625266,3711.9,3711.8,2.62961788]
[1641041442261,0.00718967,3711.9,3711.8,2.62961788]
[1641041444907,0.00718967,3711.9,3711.8,3.72961788]
[1641041452308,0.00718967,3711.9,3711.8,5.02961788]
[1641041452608,0.00718967,3711.9,3711.8,3.72961788]
[1641041456270,0.00718967,3711.9,3711.8,4.72961788]
[1641041456664,0.00718967,3711.9,3711.8,3.42961788]
[1641041456864,0.00718967,3711.9,3711.8,2.75610788]
[1641041460618,0.00718967,3711.9,3711.8,3.05610788]
[1641041466013,0.00718967,3711.9,3711.8,2.75610788]
[1641041468316,0.00718967,3711.9,3711.8,4.10299788]
[1641041469760,0.00718967,3711.9,3711.8,4.40299788]
[1641041469960,0.00093701,3711.9,3711.8,4.40299788]
[1641041470160,0.00093701,3711.9,3711.8,4.10299788]
[1641041472066,0.00093701,3711.9,3711.8,4.40299788]
[1641041478171,0.00093701,3711.9,3711.8,4.10299788]
[1641041481615,0.00093701,3711.9,3711.8,4.40299788]
[1641041491017,0.00093701,3711.9,3711.8,5.70299788]
[1641041491660,0.00093701,3711.9,3711.8,8.38866497]
[1641041492668,0.00093701,3711.9,3711.8,6.44199788]
[1641041493267,0.00093701,3711.9,3711.8,9.15675672]
[1641041494066,0.03376817,3713.0,3711.9,4.65]
[1641041494267,0.03376817,3713.0,3712.7,0.67335]
[1641041494468,0.0119369,3712.9,3712.7,0.67335]
[1641041494867,0.01136847,3712.8,3712.7,0.67335]
[1641041498920,0.01136847,3712.8,3712.7,2.99795133]
[1641041499161,0.01136847,3712.8,3712.7,3.29795133]
[1641041499364,0.01136847,3712.8,3712.7,0.97335]
[1641041499966,0.01136847,3712.8,3712.7,2.62366008]
[1641041501971,0.01136847,3712.8,3712.7,2.32366008]
[1641041503916,0.01136847,3712.8,3712.7,2.62366008]
[1641041504317,0.01231625,3712.8,3712.7,2.62366008]
[1641041504918,0.01231625,3712.8,3712.7,4.97396974]
[1641041505317,0.01231625,3712.8,3712.7,5.97396974]
[1641041505518,0.01231625,3712.8,3712.7,5.02366008]
[1641041505918,0.01231625,3712.8,3712.7,3.42366008]
[1641041506762,0.01231625,3712.8,3712.7,5.79905014]
[1641041507163,0.01231625,3712.8,3712.7,6.09905014]
[1641041507362,0.01231625,3712.8,3712.7,7.39905014]
[1641041507567,0.01231625,3712.8,3712.7,3.72948787]
[1641041507967,0.01231625,3712.8,3712.7,6.11902779]
[1641041508467,0.01231625,3712.8,3712.7,7.41902779]
[1641041513424,0.01231625,3712.8,3712.7,10.13378663]
[1641041515167,0.01231625,3712.8,3712.7,7.74424671]
[1641041516373,0.01231625,3712.8,3712.7,9.81497765]
[1641041516774,0.01231625,3712.8,3712.7,10.11497765]
[1641041524371,0.01231625,3712.8,3712.7,25.94394961]
[1641041525170,0.00094778,3712.8,3712.7,25.94394961]
[1641041525416,0.00094778,3712.8,3712.7,23.54424671]
[1641041525623,0.00014778,3712.8,3712.7,23.54424671]
[1641041528626,0.00014778,3712.8,3712.7,28.71324671]
[1641041530675,0.00014778,3712.8,3712.7,31.08898539]
[1641041530878,0.06577332,3713.6,3712.8,4.65]
[1641041531074,0.06577332,3713.6,3713.3,16.473]
[1641041531273,0.0609,3714.9,3713.4,4.65]
[1641041531474,0.0609,3714.9,3713.4,7.30031008]
[1641041531677,0.0609,3714.9,3714.2,0.6729355]
[1641041531678,0.0073895,3714.8,3714.2,0.6729355]
[1641041532074,0.00682108,3714.7,3714.5,0.67294]
[1641041532475,0.00625265,3714.6,3714.5,1.34588]
[1641041532914,0.00625265,3714.6,3714.5,0.67294]
[1641041533315,0.00625265,3714.6,3714.5,0.67882297]
[1641041534117,0.00625265,3714.6,3714.5,1.96978235]
[1641041535420,0.00625265,3714.6,3714.5,3.06978235]
[1641041536878,0.00625265,3714.6,3714.5,4.72009243]
[1641041537879,0.00625265,3714.6,3714.5,7.38982658]
[1641041538078,0.00625265,3714.6,3714.5,8.38982658]
[1641041538484,6.13625265,3715.4,3714.6,2.65]
[1641041538680,6.245249,3715.5,3715.0,0.67293]
[1641041538883,0.00341054,3715.2,3715.0,0.67293]
[1641041539081,0.00341054,3715.2,3715.0,0.97293]
[1641041539384,0.00284212,3715.1,3715.0,0.97293]
[1641041539781,0.00284212,3715.1,3715.0,1.64576]
[1641041540415,0.00284212,3715.1,3715.0,0.97293]
[1641041541222,0.02252379,3716.0,3715.0,0.97293]
[1641041541422,0.00808167,3715.9,3715.5,0.67286]
[1641041541624,0.00397897,3715.8,3715.5,0.67286]
[1641041541925,0.00341054,3715.7,3714.8,4.4325]
[1641041542121,0.00341054,3715.7,3715.6,1.65031008]
[1641041542321,0.00808167,3715.9,3715.6,1.65031008]
[1641041542622,0.00397897,3715.8,3715.6,2.32311008]
[1641041542824,0.00397897,3715.8,3715.6,1.65031008]
[1641041543021,0.00341054,3715.7,3715.6,1.65031008]
[1641041545477,0.00459733,3715.7,3715.6,1.65031008]
[1641041545671,0.00459733,3715.7,3715.6,2.32315008]
[1641041546472,0.00459733,3715.7,3715.6,3.42315008]
[1641041551548,0.00459733,3715.7,3715.6,3.72315008]
[1641041551981,0.00459733,3715.7,3715.6,4.72315008]
[1641041552179,0.00459733,3715.7,3715.6,5.02315008]
[1641041553481,0.00459733,3715.7,3715.6,4.72315008]
[1641041557339,0.00459733,3715.7,3715.6,3.42315008]
[1641041557538,0.00459733,3715.7,3715.6,2.75031008]
[1641041558938,0.00459733,3715.7,3715.6,3.05622703]
[1641041559771,0.00459733,3715.7,3715.6,3.72905703]
[1641041562179,0.00459733,3715.7,3715.6,6.09170952]
[1641041563018,0.00459733,3715.7,3715.6,4.72905703]
[1641041563822,0.00459733,3715.7,3715.6,7.50040252]
[1641041565223,0.00459733,3715.7,3715.6,5.02905703]
[1641041565423,0.00459733,3715.7,3715.6,7.42634584]
[1641041565824,0.00459733,3715.7,3715.6,5.02905703]
[1641041566222,0.00459733,3715.7,3715.6,23.22057528]
[1641041566424,0.00459733,3715.7,3715.6,7.42057528]
[1641041566868,0.00459733,3715.7,3715.6,5.02905703]
[1641041567269,0.00459733,3715.7,3715.6,23.21662121]
[1641041567468,0.00459733,3715.7,3715.6,7.41662121]
[1641041567872,0.00459733,3715.7,3715.6,5.02905703]
[1641041568474,0.00459733,3715.7,3715.6,7.41044897]
[1641041569475,0.00459733,3715.7,3715.6,23.21044897]
[1641041570076,0.00459733,3715.7,3715.6,7.41044897]
[1641041570919,0.00459733,3715.7,3715.6,5.02905703]
[1641041571118,0.00459733,3715.7,3715.6,23.22506891]
[1641041572319,0.00459733,3715.7,3715.6,25.13244451]
[1641041572719,1.0,3716.3,3715.9,0.6726169]
[1641041572920,1.0,3716.3,3716.0,0.67263]
[1641041573119,1.0,3716.3,3716.1,0.67263]
[1641041573120,0.00284212,3716.2,3716.1,0.67263]
[1641041573520,0.00284212,3716.2,3716.1,0.97263]
[1641041573719,0.00284212,3716.2,3716.1,0.67263]
[1641041574172,0.00284212,3716.2,3715.7,0.6728]
[1641041574564,1.0,3716.3,3715.7,0.6728]
[1641041574565,0.0022737,3716.1,3715.7,0.6728]
[1641041574964,0.00170527,3716.0,3715.9,2.96038979]
[1641041575166,0.00170527,3716.0,3715.9,1.73305979]
[1641041575569,0.00170527,3716.0,3715.9,2.03305979]
[1641041576469,0.00170527,3716.0,3715.9,0.97267]
[1641041577469,0.00170527,3716.0,3715.6,1.10591695]
[1641041577928,0.00113685,3715.9,3715.6,1.10591695]
[1641041578327,0.00109114,3716.0,3715.6,1.10591695]
[1641041578531,0.00109114,3716.0,3715.9,1.65031008]
[1641041586124,1.0,3716.3,3715.9,1.65031008]
[1641041586125,0.95109114,3716.3,3715.9,1.65031008]
[1641041586327,0.95109114,3716.3,3715.8,0.00592765]
[1641041586524,0.00284212,3716.2,3715.8,0.00592765]
[1641041586725,0.00284212,3716.2,3716.0,1.65031008]
[1641041586923,0.0022737,3716.1,3716.0,1.65031008]
[1641041588626,0.00325568,3716.1,3716.0,1.65031008]
[1641041597868,0.62620568,3716.2,3716.0,1.65031008]
[1641041598072,0.62620568,3716.2,3716.0,0.82515504]
[1641041598268,0.62620568,3716.2,3715.8,0.00777342]
[1641041598471,0.62620568,3716.2,3716.1,0.82515504]
[1641041599073,0.62709664,3716.2,3716.1,0.82515504]
[1641041601020,0.92709664,3716.2,3716.1,0.82515504]
[1641041601223,0.62709664,3716.2,3716.1,0.82515504]
[1641041602019,0.92709664,3716.2,3716.1,0.82515504]
[1641041602419,1.92709664,3716.2,3716.1,0.82515504]
[1641041602720,0.92709664,3716.2,3716.1,0.82515504]
[1641041602921,1.92709664,3716.2,3716.1,0.82515504]
[1641041603522,0.92709664,3716.2,3716.1,0.82515504]
[1641041603821,1.92709664,3716.2,3716.1,0.82515504]
[1641041604022,1.92709664,3716.2,3716.1,1.65031008]
[1641041604023,0.92709664,3716.2,3716.1,1.65031008]
[1641041604272,1.92709664,3716.2,3716.1,1.65031008]
[1641041604475,0.62709664,3716.2,3716.1,1.65031008]
[1641041604772,1.92709664,3716.2,3716.1,1.65031008]
[1641041604973,0.62709664,3716.2,3716.1,1.65031008]
[1641041606075,0.00089096,3716.2,3716.1,1.65031008]
[1641041611429,0.30089096,3716.2,3716.1,1.65031008]
[1641041612573,1.30089096,3716.2,3716.1,1.65031008]
[1641041612773,0.30089096,3716.2,3716.1,1.65031008]
[1641041612978,0.00089096,3716.2,3716.1,1.65031008]
[1641041614782,0.00089096,3716.2,3715.0,0.67293]
[1641041614783,4.65,3716.1,3715.0,0.67293]
[1641041614982,4.65,3715.9,3714.7,1.9073756]
[1641041615181,4.65,3715.9,3715.7,3.685e-05]
[1641041615182,2.49016538,3715.8,3715.7,3.685e-05]
[1641041615426,4.65,3715.7,3714.7,1.9073756]
[1641041615633,1.34646,3715.3,3714.8,0.00511581]
[1641041615830,1.94646,3715.3,3714.8,0.00898183]
[1641041616230,1.94646,3715.3,3714.9,0.00454739]
[1641041616430,1.27921819,3715.2,3714.9,0.00454739]
[1641041616630,3.25244819,3715.2,3714.9,0.00454739]
[1641041617232,2.78915223,3715.1,3714.9,0.00454739]
[1641041617731,5.65,3715.0,3714.9,0.00454739]
[1641041617930,3.74872208,3715.0,3714.9,0.00454739]
[1641041618333,4.42196208,3715.0,3714.9,0.00454739]
[1641041619771,20.22196208,3715.0,3714.9,0.00454739]
[1641041620173,17.77324,3715.0,3714.9,0.00454739]
[1641041620373,20.91514,3715.0,3714.9,0.00454739]
[1641041620978,25.32806436,3715.0,3714.9,0.00454739]
[1641041621978,27.43697524,3715.0,3714.9,0.00454739]
[1641041622583,9.80744683,3715.0,3714.9,0.00454739]
[1641041622780,12.54481964,3715.0,3714.9,0.00454739]
[1641041623222,10.02002369,3715.0,3714.9,0.00454739]
[1641041624825,25.82002369,3715.0,3714.9,0.00454739]
[1641041625230,28.40341964,3715.0,3714.9,0.00454739]
[1641041625632,26.29450876,3715.0,3714.9,0.00454739]
[1641041626232,9.19450876,3715.0,3714.9,0.00454739]
[1641041626870,24.99450876,3715.0,3714.9,0.00454739]
[1641041627471,9.19450876,3715.0,3714.9,0.00454739]
[1641041628270,6.61111281,3715.0,3714.9,0.00454739]
[1641041628871,6.91111281,3715.0,3714.9,0.00454739]
[1641041629072,8.21111281,3715.0,3714.9,0.00454739]
[1641041629471,10.79450876,3715.0,3714.9,0.00454739]
[1641041629671,23.85713595,3715.0,3714.9,4.739e-05]
[1641041629871,4.65,3714.9,3713.0,0.0572]
[1641041630071,0.6734,3714.0,3713.0,0.0572]
[1641041630272,0.6734,3714.0,3713.2,0.00966319]
[1641041630527,0.9734,3714.0,3713.2,0.00966319]
[1641041630723,0.3,3714.0,3713.2,0.00966319]
[1641041630924,1.31737402,3713.7,3713.2,0.00966319]
[1641041631123,1.61737402,3713.7,3713.2,0.00966319]
[1641041631823,3.02195299,3713.6,3712.8,0.01193689]
[1641041632223,1.0,3713.5,3712.8,0.01193689]
[1641041632423,1.3,3713.5,3712.8,0.01193689]
[1641041633125,2.30307688,3713.4,3712.8,0.01193689]
[1641041633324,2.35613329,3713.4,3712.8,0.01193689]
[1641041633522,3.63878962,3713.6,3712.8,0.01193689]
[1641041633724,0.67346,3713.3,3712.8,0.01193689]
[1641041633925,2.39572981,3713.2,3712.8,0.01193689]
[1641041634169,2.69572981,3713.2,3712.6,0.01307374]
[1641041634570,1.0,3713.1,3712.6,0.01307374]
[1641041634770,0.67355,3713.0,3712.6,0.01307374]
[1641041634970,0.67355,3713.0,3712.5,0.01364216]
[1641041635171,1.0,3713.1,3712.5,0.01364216]
[1641041635577,2.33027492,3713.3,3712.5,0.01364216]
[1641041635777,3.73493316,3713.5,3712.5,0.01364216]
[1641041636074,2.43493316,3713.5,3712.5,0.01364216]
[1641041636274,0.3,3713.5,3712.5,0.01364216]
[1641041636475,1.0,3713.6,3712.5,0.01364216]
[1641041636676,0.67345,3713.4,3712.5,0.01364216]
[1641041636878,4.94556985,3713.7,3712.5,0.0262379]
[1641041637276,4.94556985,3713.7,3712.6,0.01307374]
[1641041638225,4.94556985,3713.7,3712.5,0.01364216]
[1641041638926,0.67344,3713.5,3712.5,0.01364216]
[1641041639527,2.30816785,3713.8,3712.5,0.01364216]
[1641041639727,2.32261009,3713.7,3712.5,0.01364216]
[1641041639930,0.67341,3713.7,3712.5,0.01364216]
[1641041640427,2.29100581,3713.6,3712.5,0.01364216]
[1641041640632,0.67341,3713.7,3712.5,0.01364216]
[1641041640830,2.29749639,3713.6,3712.5,0.01364216]
[1641041641033,0.67341,3713.7,3712.5,0.01364216]
[1641041641233,0.67341,3713.7,3712.5,0.01733235]
[1641041641431,0.67336,3713.9,3712.5,0.01733235]
[1641041641672,0.67336,3713.9,3712.6,0.01307374]
[1641041642077,1.0,3714.0,3712.6,0.01307374]
[1641041642275,5.79802339,3714.1,3712.6,0.01307374]
[1641041642276,5.52875985,3714.1,3712.6,0.01307374]
[1641041642475,6.738431,3714.1,3712.6,0.01307374]
[1641041642876,1.0,3714.0,3712.6,0.01307374]
[1641041643075,2.36078317,3713.9,3712.6,0.01307374]
[1641041643274,2.66078317,3713.9,3712.6,0.01307374]
[1641041643680,1.0,3713.8,3712.6,0.01307374]
[1641041644378,0.67336,3713.9,3712.6,0.01307374]
[1641041644578,3.10834997,3714.1,3712.9,0.0127421]
[1641041644579,0.05164997,3714.1,3712.9,0.0127421]
[1641041644777,2.61372226,3714.6,3712.9,0.0127421]
[1641041644978,0.3,3714.6,3713.0,0.01080004]
[1641041645422,1.41831574,3714.6,3713.6,1.08202837]
[1641041645828,1.41831574,3714.6,3713.7,0.00682108]
[1641041646527,1.41831574,3714.6,3713.7,0.01051019]
[1641041647026,1.41831574,3714.6,3713.8,0.00625265]
[1641041647226,0.70296048,3714.7,3713.8,0.00625265]
[1641041647427,0.3,3714.6,3713.8,0.00625265]
[1641041647827,0.70296048,3714.7,3713.8,0.00625265]
[1641041648026,1.70296048,3714.7,3713.8,0.00625265]
[1641041648230,0.67323,3714.6,3713.8,0.00625265]
[1641041649474,0.70296048,3714.7,3713.8,0.00625265]
[1641041649677,3.29525397,3715.1,3713.8,0.00625265]
[1641041649876,1.34638,3715.2,3713.8,0.00625265]
[1641041650076,2.35624602,3715.3,3713.8,0.00625265]
[1641041650374,0.00113685,3715.1,3713.8,0.00625265]
[1641041650577,0.00113685,3715.1,3713.8,0.67935265]
[1641041650777,2.31623656,3715.3,3713.8,0.00625265]
[1641041650980,2.31623656,3715.3,3713.9,0.00568423]
[1641041650981,1.0,3715.2,3713.9,0.00568423]
[1641041651178,1.00170527,3715.2,3713.8,0.00625265]
[1641041651381,1.30170527,3715.2,3713.8,0.00625265]
[1641041651578,0.67313,3715.1,3713.8,0.00625265]
[1641041653027,1.30170527,3715.2,3713.8,0.00625265]
[1641041653224,0.00170527,3715.2,3713.9,0.67308]
[1641041653424,1.00170527,3715.2,3713.9,0.67308]
[1641041653627,0.00170527,3715.2,3714.0,0.00511581]
[1641041656329,1.00170527,3715.2,3714.0,0.00511581]
[1641041656773,0.67312,3715.1,3714.0,0.00511581]
[1641041657173,0.67312,3715.1,3713.8,0.00625265]
[1641041658374,0.00170527,3715.2,3713.9,0.67308]
[1641041658574,0.00170527,3715.2,3713.9,0.97308]
[1641041658774,0.00170527,3715.2,3714.0,0.00511581]
[1641041659177,2.29584341,3715.2,3714.0,0.00511581]
[1641041659379,0.00170527,3715.2,3714.0,0.00511581]
[1641041662327,0.00170527,3715.2,3714.1,0.67305]
[1641041662528,0.00170527,3715.2,3714.1,0.97305]
[1641041662727,0.00170527,3715.2,3714.2,0.00397896]
[1641041665078,0.00170527,3715.2,3714.2,0.30397896]
[1641041665279,0.00170527,3715.2,3714.0,0.00511581]
[1641041665482,0.00170527,3715.2,3714.3,0.00341054]
[1641041665783,0.00170527,3715.2,3714.0,0.00511581]
[1641041667186,0.67312,3715.1,3714.0,0.00511581]
[1641041668637,0.67317,3714.8,3714.0,0.00511581]
[1641041670037,0.67317,3714.8,3713.8,0.00625265]
[1641041670643,0.67314,3715.0,3713.8,0.00625265]
[1641041672080,2.35494226,3714.9,3713.8,0.00625265]
[1641041672376,1.50170527,3715.2,3713.8,0.00625265]
[1641041672377,0.67321,3714.6,3713.8,0.00625265]
[1641041676330,2.30232139,3715.0,3713.8,0.00625265]
[1641041676530,3.74879519,3715.2,3713.8,0.00625265]
[1641041677532,0.67314,3715.1,3713.8,0.00625265]
[1641041677731,2.35947627,3715.0,3713.8,0.00625265]
[1641041677933,0.67314,3715.1,3713.8,0.00625265]
[1641041678134,2.98277005,3715.1,3713.8,0.00625265]
[1641041678532,3.28277005,3715.1,3713.8,0.00625265]
[1641041678732,2.60963005,3715.1,3713.8,0.00625265]
[1641041678934,1.0,3715.0,3713.8,0.00625265]
[1641041679174,2.99781577,3714.9,3713.8,0.00625265]
[1641041679574,1.0585,3714.8,3713.8,0.00625265]
[1641041679777,2.77882097,3714.7,3713.8,0.00625265]
[1641041679975,1.10670317,3714.1,3713.8,0.00625265]
[1641041680377,1.40670317,3714.1,3713.8,0.00625265]
[1641041681279,3.3813515,3714.1,3713.8,0.00625265]
[1641041681480,2.28994883,3714.0,3713.8,0.00625265]
[1641041681778,1.10670317,3714.1,3713.8,0.00625265]
[1641041681978,2.49230076,3714.4,3713.8,0.00625265]
[1641041681979,2.79230076,3714.4,3713.8,0.00625265]
[1641041682179,1.0,3714.3,3713.8,0.00625265]
[1641041682680,2.95769904,3714.2,3713.8,0.00625265]
[1641041683129,1.09475679,3714.0,3713.8,0.00625265]
[1641041684230,0.67336,3713.9,3713.8,0.00625265]
[1641041684631,3.00603601,3714.2,3713.8,0.00625265]
[1641041684829,0.6733,3714.2,3713.8,0.00625265]
[1641041685230,2.27433009,3714.3,3713.8,0.00625265]
[1641041685634,4.63025955,3714.3,3713.8,0.00625265]
[1641041685834,3.63025955,3714.3,3713.8,0.00625265]
[1641041686681,0.67329,3714.1,3713.8,0.00625265]
[1641041687182,2.95335038,3714.1,3713.8,0.00625265]
[1641041687384,2.94831311,3714.1,3713.8,0.00625265]
[1641041687584,2.9792712,3714.1,3713.8,0.00625265]
[1641041687981,0.67329,3714.1,3713.8,0.00625265]
[1641041688385,2.93863425,3714.1,3713.8,0.00625265]
[1641041688987,2.94208925,3714.1,3713.8,0.00625265]
[1641041689186,0.67329,3714.1,3713.8,0.00625265]
[1641041689383,2.02918946,3714.3,3713.8,0.00625265]
[1641041689587,0.67326,3714.3,3713.8,0.00625265]
[1641041689784,1.3,3714.4,3713.8,0.00625265]
[1641041689982,1.3,3714.5,3713.8,0.00625265]
[1641041690186,3.7156,3714.8,3713.8,0.00625265]
[1641041690424,4.0156,3714.8,3713.8,0.00625265]
[1641041690627,3.7156,3714.8,3713.8,0.00625265]
[1641041691029,0.67322,3714.5,3713.8,0.00625265]
[1641041692834,3.7156,3714.8,3714.2,1.35573489]
[1641041693031,2.81039658,3715.2,3714.2,1.35573489]
[1641041693233,2.81039658,3715.2,3714.3,0.00341054]
[1641041693733,2.81039658,3715.3,3714.3,0.00341054]
[1641041694032,0.00170527,3715.2,3714.3,0.00341054]
[1641041694477,0.00113685,3715.1,3714.3,0.00341054]
[1641041698734,0.00113685,3715.1,3714.3,0.67645054]
[1641041699135,0.00113685,3715.1,3714.4,0.00284211]
[1641041701341,0.00113685,3715.1,3714.5,0.67302]
[1641041701779,0.00113685,3715.1,3714.6,0.00170527]
[1641041703781,0.00113685,3715.1,3714.5,0.3]
[1641041703983,0.00113685,3715.1,3714.3,0.97646054]
[1641041704181,0.00113685,3715.1,3714.6,0.00170527]
[1641041704383,0.00113685,3715.1,3714.4,0.00284211]
[1641041708137,0.00113685,3715.1,3714.4,0.30284211]
[1641041708535,0.00113685,3715.1,3714.5,0.00227369]
[1641041709179,0.00113685,3715.1,3714.5,0.00596212]
[1641041709381,0.00113685,3715.1,3714.5,0.00368843]
[1641041709580,0.00113685,3715.1,3714.6,0.00170527]
[1641041711785,0.00113685,3715.1,3714.6,0.67470527]
[1641041712189,0.00113685,3715.1,3714.7,0.00113684]
[1641041713026,0.00113685,3715.1,3714.6,0.00170527]
[1641041723133,2.25995875,3715.1,3714.6,0.00170527]
[1641041723334,2.28650094,3715.1,3714.6,0.00170527]
[1641041723533,0.00113685,3715.1,3714.6,0.00170527]
[1641041723736,2.94653716,3715.1,3714.6,0.00170527]
[1641041723935,3.24653716,3715.1,3714.6,0.00170527]
[1641041724182,1.0,3715.0,3714.6,0.00170527]
[1641041724380,2.77715307,3714.9,3714.6,0.00170527]
[1641041724579,1.0,3714.8,3714.6,0.00170527]
[1641041724780,2.67293491,3714.7,3714.6,0.00170527]
[1641041724980,1.34658,3714.8,3714.6,0.00170527]
[1641041725181,2.55614132,3714.7,3714.6,0.00170527]
[1641041726685,3.22937132,3714.7,3714.6,0.00170527]
[1641041730830,3.22937132,3714.7,3714.3,0.00341054]
[1641041731032,0.67323,3714.7,3714.3,0.00341054]
[1641041731231,2.93856171,3714.7,3714.3,0.00341054]
[1641041731433,2.95058273,3714.7,3714.3,0.00341054]
[1641041731681,0.67323,3714.7,3714.3,0.00341054]
[1641041732483,2.26052262,3714.6,3714.3,0.00341054]
[1641041732684,0.67323,3714.5,3714.3,0.00341054]
[1641041733286,6.8596578,3714.4,3714.3,0.00341054]
[1641041733687,6.8596578,3714.4,3713.6,0.06559729]
[1641041733688,8.4596578,3714.4,3713.6,0.06559729]
[1641041733892,0.67344,3714.0,3713.7,0.00682108]
[1641041734092,2.80987287,3713.9,3713.7,0.00682108]
[1641041734289,17.04104354,3713.8,3713.7,0.00682108]
[1641041734488,2.24104354,3713.8,3713.7,0.00682108]
[1641041734688,3.81923902,3713.8,3713.7,0.00682108]
[1641041734889,3.81923902,3713.8,3713.7,0.01051058]
[1641041735091,3.81923902,3713.8,3713.6,0.06559729]
[1641041735092,4.65,3713.7,3713.6,0.00370787]
[1641041735429,24.61535021,3713.7,3712.4,6.18]
[1641041735634,8.81535021,3713.7,3712.4,6.18]
[1641041735832,4.16535021,3713.7,3712.5,0.00682108]
[1641041736241,8.92241527,3713.7,3712.5,0.00682108]
[1641041736439,0.67359,3713.1,3712.5,0.00682108]
[1641041736839,0.67359,3713.1,3712.3,0.00795793]
[1641041737040,2.43269879,3713.4,3712.3,0.00795793]
[1641041737240,1.8929746,3713.6,3712.3,0.00795793]
[1641041737441,1.8929746,3713.6,3712.4,0.67338]
[1641041737640,0.0579,3713.6,3712.4,0.67338]
[1641041737840,0.0579,3713.6,3712.4,0.97338]
[1641041738040,0.0579,3713.6,3712.4,0.3]
[1641041738439,0.0579,3713.6,3712.3,4.01493862]
[1641041738440,0.0579,3713.6,3712.3,4.31493862]
[1641041738640,0.0579,3713.6,3712.3,4.37243862]
[1641041738842,1.24104354,3713.8,3712.4,0.0073895]
[1641041739042,1.24104354,3713.8,3712.6,0.67331]
[1641041739579,1.24104354,3713.8,3712.7,0.00568423]
[1641041740176,1.24104354,3713.8,3712.7,0.30568423]
[1641041740378,3.50626927,3713.8,3712.7,0.3]
[1641041740580,1.24104354,3713.8,3712.8,0.00511581]
[1641041741080,2.26643415,3713.7,3712.4,0.3073895]
[1641041741280,1.24104354,3713.8,3712.4,0.0073895]
[1641041741281,3.49993404,3713.8,3712.4,0.0073895]
[1641041741479,1.24104354,3713.8,3712.4,0.3073895]
[1641041741683,3.49948723,3713.8,3712.4,0.9807395]
[1641041741889,3.49948723,3713.8,3712.4,1.2807395]
[1641041742083,3.52382683,3713.8,3712.4,1.2807395]
[1641041742283,2.25971731,3713.7,3712.4,1.2807395]
[1641041742484,2.25971731,3713.7,3712.4,0.6073895]
[1641041742682,2.25971731,3713.7,3712.4,0.3073895]
[1641041742929,2.55971731,3713.7,3712.4,0.0073895]
[1641041743131,3.55971731,3713.7,3712.4,0.0073895]
[1641041743730,0.67345,3713.3,3712.4,0.0073895]
[1641041744132,2.27902641,3713.5,3712.4,0.0073895]
[1641041744333,2.30002436,3713.7,3712.4,0.0073895]
[1641041744534,2.60002436,3713.7,3712.4,0.0073895]
[1641041746338,0.67343,3713.4,3712.4,0.0073895]
[1641041746989,1.24104354,3713.8,3712.4,0.0073895]
[1641041747590,1.24104354,3713.8,3712.4,1.0073895]
[1641041747794,1.24104354,3713.8,3712.5,2.39419348]
[1641041747992,1.24104354,3713.8,3712.5,3.39419348]
[1641041748192,1.24104354,3713.8,3712.6,0.00625266]